Cogmind - Beta 15 @@@ ROGUE MODE // 2025.05.12 @ 22:28:38 Player: Ulinator001 Result: Destroyed by YL-JM0(R) with Subdweller Laser Performance ------------- Evolutions (0) 0 Regions Visited (2) 400 Robots Destroyed (18) 90 Value Destroyed (498) 498 Prototype IDs (0) 0 Alien Tech Used (0) 0 Bonus (0) 0 TOTAL SCORE: 988 Bonus ------- None Cogmind --------- Core Integrity 0/250 Matter 263/300 Energy 100/100 System Corruption 0% Temperature Cool (6) Movement Core (50) Location -10/Subcaves Parts ------- > --- POWER (1) -------- (None) > --- PROPULSION (2) --- (None) > --- UTILITY (2) ------ (None) > --- WEAPON (2) ------- (None) > --- INVENTORY (5) ---- Seismic Detector Peak State ------------ > --- POWER ------------ Subdweller Power Source > --- PROPULSION ------- Aluminum Leg Aluminum Leg > --- UTILITY ---------- Small Storage Unit Signal Interpreter > --- WEAPON ----------- Subdweller Beam Cannon Slug Cannon > --- INVENTORY -------- Light Ion Engine Sensor Array Seismic Detector Scrap Shield Scrap Shield Fragment Scrap Shield Fragment Scrap Shield Fragment [Rating: 13] Favorites ----------- Power Ion Engine Engine Ion Engine Propulsion Aluminum Leg Leg Aluminum Leg Wheel Subdweller Monowheel Utility Small Storage Unit Device Seismic Detector Storage Small Storage Unit Processor Signal Interpreter Protection Scrap Shield Weapon Subdweller Beam Cannon Energy Cannon Subdweller Beam Cannon Ballistic Gun Assault Rifle Ballistic Cannon Slug Cannon Special Weapon Mining Laser Build | -11 -10 -10 ------- Run | Yrd Mat Sub Slots Evolved . | . . . Power . | . . . Propulsion . | . . . Utility . | . . . Weapon . | . . . Parts Attached 16 | 6 3 7 Power 3 | 1 . 2 Engine 3 | 1 . 2 Core . | . . . Reactor . | . . . Propulsion 3 | 2 . 1 Treads . | . . . Leg 2 | 2 . . Wheel 1 | . . 1 Hover . | . . . Flight . | . . . Utility 4 | 1 2 1 Device 1 | . 1 . Storage 1 | 1 . . Processor 1 | . 1 . Hackware . | . . . Protection 1 | . . 1 Artifact . | . . . Weapon 6 | 2 1 3 Energy Gun . | . . . Energy Cannon 1 | . . 1 Ballistic Gun 3 | 2 . 1 Ballistic Cannon 1 | . . 1 Launcher . | . . . Special Weapon 1 | . 1 . Impact Weapon . | . . . Slashing Weapon . | . . . Piercing Weapon . | . . . Special Melee Weapon . | . . . Unidentified Prototypes . | . . . Parts Lost 8 | . . 8 Power 1 | . . 1 Propulsion 3 | . . 3 Utility 1 | . . 1 Weapon 3 | . . 3 Highest Loss Streak 2 | . . 2 To Critical Strikes . | . . . Average Backups 4 | 3 5 4 Power . | . 1 . Propulsion . | 1 2 . Utility 2 | . . 2 Weapon . | 1 2 . Tool/Special . | . . . Unused Backups 4 | . . 4 Power . | . . . Propulsion 2 | . . 2 Utility 1 | . . 1 Weapon 1 | . . 1 Tool/Special . | . . . Average Slot Usage (%) 90 | . 90 90 Engine 13 | . 14 13 Leg 22 | . 28 22 Wheel 1 | . . 1 Storage 11 | . 14 11 Processor 10 | . . 11 Protection 1 | . . 2 Energy Cannon 10 | . . 11 Ballistic Gun 4 | . 24 3 Ballistic Cannon 9 | . . 9 Special Weapon 1 | . 3 1 Peak Build Rating 13 | 6 7 13 Average Rating 9 | 5 6 10 On Entrance 4 | . 6 7 Naked Turns 6 | . . 6 Heaviest Build 36 | 13 14 36 Greatest Support 20 | 20 20 20 Greatest Overweight (x) 11 | 3 . 11 Average Overweight (x) . | . . . Largest Inventory Capacity 8 | 8 8 8 Average Capacity 7 | 7 8 7 Most Carried 8 | 5 7 8 Average Carried 6 | 3 5 6 Final Capacity 8 | 8 8 5 Final Carried 7 | 5 7 1 Class Distribution -------------------- 93% | Mutant 6% | Subdweller-Mutant Dominant Class ---------------- Mutant | -10/Materials Mutant | -10/Subcaves Resources | -11 -10 -10 ----------- Run | Yrd Mat Sub Matter Collected 507 | 300 14 193 Remotely . | . . . Salvage Created 530 | 167 17 346 Parts 42 | 15 6 21 Haulers Intercepted . | . . . Recyclers Shooed . | . . . Parts Field Recycled . | . . . Retrieved Matter . | . . . Parts Self-Destructed 14 | . . 14 Prevented . | . . . Kills | -11 -10 -10 ------- Run | Yrd Mat Sub Combat Hostiles Destroyed 11 | . . 11 Guns 2 | . . 2 Cannons 8 | . . 8 Classes Destroyed 3 | 2 . 1 Tunneler 6 | 5 1 . Recycler 1 | 1 . . Subdweller 11 | . . 11 Best Kill Streak 4 | 4 1 4 Combat Bots Only 4 | . . 4 Max Kills in Single Turn 1 | 1 1 1 Gunslinging . | . . . Exploded . | . . . Melee . | . . . Uniques/NPCs Destroyed . | . . . Combat | -11 -10 -10 -------- Run | Yrd Mat Sub Hostile Shots Fired 80 | . . 80 Missed 23 | . . 23 Hits 57 | . . 57 Projectile 57 | . . 57 AOE 4 | . . 4 Critical Strikes 2 | . . 2 Damage Taken 1376 | . . 1376 Core 254 | . . 254 Absorbed by Shields . | . . . Core Remaining (%) 100 | 100 . . Volleys Fired 54 | 10 3 41 Largest 2 | 2 2 2 Hottest 120 | 40 100 120 Shots Fired 92 | 20 4 68 Gun 34 | 20 3 11 Cannon 57 | . . 57 Launcher . | . . . Special 1 | . 1 . Kinetic 64 | 20 3 41 Thermal 28 | . 1 27 Explosive . | . . . Electromagnetic . | . . . Robot Hit Streak 12 | 12 4 9 Robot Miss Streak 2 | 1 1 2 Penetration Max . | . . . Secondary Targets . | . . . Shots Hit Robots 63 | 15 1 47 Core Hits 24 | 7 1 16 Critical Kills 3 | 1 . 2 Critical Parts Destroyed . | . . . Critical Strikes 4 | 1 . 3 Meltdown 1 | . . 1 Destroy 3 | 1 . 2 Melee Attacks . | . . . Impact . | . . . Slashing . | . . . Piercing . | . . . Sneak Attacks . | . . . Combat Hostiles . | . . . Follow-up Attacks . | . . . Damage Inflicted 1386 | 167 15 1204 Guns 309 | 167 15 127 Cannons 1066 | . . 1066 Explosions . | . . . Melee . | . . . Ramming 11 | . . 11 Kinetic 815 | 167 15 633 Thermal 560 | . . 560 Explosive . | . . . Electromagnetic . | . . . Impact . | . . . Slashing . | . . . Piercing . | . . . Highest Corruption . | . . . Average Corruption . | . . . Corruption Purged . | . . . Corruption Blocked . | . . . Overload Shots . | . . . Overflow Damage . | . . . Projectiles . | . . . Explosions . | . . . Melee . | . . . Knockbacks 4 | . . 4 Impact 1 | . . 1 Kinetic 3 | . . 3 Secondary . | . . . Self-Inflicted Damage 3 | . . 3 Shots . | . . . Rammed 11 | . . 11 Targets Rammed 11 | . . 11 Kicked . | . . . Crushed . | . . . Highest Temperature 30 | . 20 30 Average Temperature 15 | . 10 16 Received Heat Transfer 267 | . . 267 Siege Activations . | . . . Martial Activations . | . . . Shielding Activations . | . . . Robots Disrupted . | . . . Combat Hostiles . | . . . Robots Corrupted . | . . . Combat Hostiles . | . . . Parts Fried . | . . . Impact Corruptions . | . . . Robots Melted 1 | . . 1 Combat Hostiles 1 | . . 1 Parts Melted 2 | . . 2 Heat Transferred 740 | . . 740 Parts Sabotaged . | . . . Parts Stolen . | . . . Parts Stripped . | . . . Power Chain Reactions . | . . . Alert | -11 -10 -10 ------- Run | Yrd Mat Sub Maximum Alert Level . | . . . Low Security (%) 100 | 100 100 . Level 1 . | . . . Level 2 . | . . . Level 3 . | . . . Level 4 . | . . . Level 5 . | . . . High Security . | . . . Max Security . | . . . Peak Influence 15 | 10 15 . Initial . | . . . Average 2 | 2 2 . Influence Increases 51 | 30 21 . Destroy 0b10 Robot/NC 35 | 30 5 . Disable Machine 15 | . 15 . Destroy Structure 1 | . 1 . Influence Decreases 51 | 30 21 . Time Decay 51 | 30 21 . Squads Dispatched . | . . . Investigation . | . . . Extermination . | . . . Reinforcement . | . . . Assault . | . . . Garrison . | . . . Intercept . | . . . Searches Triggered . | . . . Construction Impeded . | . . . Haulers Reinforced . | . . . Active Scanning Responses . | . . . Cargo Convoy Interrupts . | . . . Stealth | -11 -10 -10 --------- Run | Yrd Mat Sub Distress Signals . | . . . Communications Jammed . | . . . Distress Signals . | . . . Times Spotted 13 | . 1 12 Peak Tracking Total 3 | . 1 3 Tactical Retreats . | . . . Traps | -11 -10 -10 ------- Run | Yrd Mat Sub Traps Triggered . | . . . Indirectly . | . . . Trap Hack Attempts . | . . . Triggered . | . . . Disarmed . | . . . Reprogrammed . | . . . Reused . | . . . Traps Extracted . | . . . Installed . | . . . Triggered . | . . . Machines | -11 -10 -10 ---------- Run | Yrd Mat Sub Machines Disabled 1 | . 1 . Max in Single Turn 1 | . 1 . Machines Repaired . | . . . Machines Dismantled . | . . . Machines Sabotaged . | . . . Overloaded Fab Kills . | . . . Hacking | -11 -10 -10 --------- Run | Yrd Mat Sub Machines Accessed . | . . . Terminals . | . . . Fabricators . | . . . Repair Stations . | . . . Recycling Units . | . . . Scanalyzers . | . . . Garrison Access . | . . . Total Hacks . | . . . Successful . | . . . Failed . | . . . Catastrophic . | . . . Database Lockouts . | . . . Manual . | . . . Terminals . | . . . Fabricators . | . . . Repair Stations . | . . . Recycling Units . | . . . Scanalyzers . | . . . Garrison Access . | . . . Terminal Hacks . | . . . Fabricator Hacks . | . . . Repair Station Hacks . | . . . Recycling Unit Hacks . | . . . Scanalyzer . | . . . Garrison Access Hacks . | . . . Unauthorized Hacks . | . . . Terminals . | . . . Fabricators . | . . . Repair Stations . | . . . Recycling Units . | . . . Scanalyzers . | . . . Garrison Access . | . . . Data Cores Recovered . | . . . Used . | . . . Hacking Detections . | . . . Full Trace Events . | . . . Feedback Events . | . . . Feedback Blocked . | . . . Robot Schematics Acquired . | . . . Robots Built . | . . . Authchips . | . . . Time . | . . . Total Robot Build Rating . | . . . Part Schematics Acquired . | . . . Parts Built . | . . . Authchips . | . . . Time . | . . . Total Part Build Rating . | . . . Parts Repaired . | . . . Time . | . . . Parts Recycled . | . . . Recycled Matter . | . . . Retrieved Matter . | . . . Retrieved Components . | . . . Parts Scanalyzed . | . . . Part Schematics Acquired . | . . . Parts Damaged . | . . . Bothacking | -11 -10 -10 ------------ Run | Yrd Mat Sub Used RIF Installer . | . . . Robots Hacked . | . . . Non-combat . | . . . Combat . | . . . Robot Hacks Applied . | . . . Relay Couplers Released . | . . . Fabnet Peak Effective % . | . . . Robots Rewired . | . . . Allies Hacked . | . . . Hacks Repelled . | . . . Allies | -11 -10 -10 -------- Run | Yrd Mat Sub Total Allies . | . . . Largest Group . | . . . Highest-Rated Group . | . . . Highest-Rated Ally . | . . . Total Orders . | . . . Ally Attacks . | . . . Total Damage . | . . . Kills . | . . . Allies Corrupted . | . . . Allies Melted . | . . . Intel | -11 -10 -10 ------- Run | Yrd Mat Sub Active Infowar (turns) 52 | . 52 . Seismic 52 | . 52 . Robot Analysis Total . | . . . Derelict Logs Recovered . | . . . Drone Launches . | . . . Drone Recoveries . | . . . Exploration | -11 -10 -10 ------------- Run | Yrd Mat Sub Turns Passed 2241 | 198 125 1918 Spaces Moved 1218 | 105 40 1073 Core 93 | 6 . 87 Treads . | . . . Legs 1016 | 99 40 877 Wheels 109 | . . 109 Hover . | . . . Flight . | . . . Fastest Speed 50 | 50 120 50 Average Speed 152 | 129 120 156 Slowest Speed 600 | 200 120 600 Overloaded Moves . | . . . Propulsion Burnouts . | . . . Robots Hopped . | . . . Potential Cave-ins . | . . . Cave-ins Triggered . | . . . Exploration Rate (%) 24 | 5 7 61 Regions Visited 2 Branch Regions 1 Pre-discovered Areas . | . . . Known Exits Taken 1 | . 1 . Unknown Exits Taken 1 | 1 . . Scrap Searched 4 | . . 4 Spaces Dug . | . . . Terrain Destroyed 12 | . . 12 Melee . | . . . Projectile 12 | . . 12 AOE . | . . . Terrain Rammed . | . . . Walls Destroyed . | . . . Machines Disabled . | . . . Actions | -11 -10 -10 --------- Run | Yrd Mat Sub Total 1487 | 145 109 1233 Wait 161 | 20 62 79 Move 1216 | 104 39 1073 Hop . | . . . Pick Up 13 | 5 2 6 Fast Attach 11 | 6 1 4 Attach 1 | . . 1 Detach . | . . . Swap 4 | . 2 2 Drop 13 | . . 13 Fire 54 | 10 3 41 Melee . | . . . Ram 11 | . . 11 Kick . | . . . Crush . | . . . Escape Stasis . | . . . Rewire . | . . . Trap . | . . . Miscellaneous 3 | . . 3 Route ------- -11/Scrapyard -10/Materials -10/Subcaves (discovered 2 exits: *Mat / *Scr) History --------- Turn | Location | Event 11 | -11/Scrapyard | Discovered new exit (range 15) 199 | -11/Scrapyard | Entered Materials 264 | -10/Materials | Discovered new exit (range 3) 311 | -10/Materials | Build established: Mutant 323 | -10/Materials | Identified exit to Subcaves 324 | -10/Materials | Entered Subcaves 325 | -10/Subcaves | Approached by a straggling Scientist 885 | -10/Subcaves | Shifting Twisted Machinery released Battle Cannon 886 | -10/Subcaves | Shifting Twisted Machinery released Sub. Power Source 941 | -10/Subcaves | Scientist uncovered a shortcut to Scraptown 942 | -10/Subcaves | Identified exit to Scraptown 1288 | -10/Subcaves | Discovered new exit (range 13) 1334 | -10/Subcaves | Identified exit to Materials 1747 | -10/Subcaves | A swath of the cavern ceiling suddenly collapsed 1772 | -10/Subcaves | Shifting Twisted Machinery released Shrapnel Trap 1838 | -10/Subcaves | Ambushed by Subdweller buried in earth 1856 | -10/Subcaves | Ambushed by Subdweller buried in earth 2142 | -10/Subcaves | Core integrity fell below 50% 2211 | -10/Subcaves | Core integrity fell below 20% 2242 | -10/Subcaves | Destroyed by YL-JM0(R) with Subdweller Laser Last Messages --------------- Scrap Shield Fragment affixed to Scrap Shield (+7). Acquired 20 matter. Acquired 6 matter. GS-5RL(u) tweaks Twisted Machinery. Sub. Monowheel destroyed. GS-5RL(u) tweaks Twisted Machinery. Slug Cannon destroyed. Slammed into YL-JM0(R). Critical hit (Destroy). Slammed into YL-JM0(R). YL-JM0(R) knocked back. Scrap Shield destroyed. Subatomizers dissect the Broken Sub. Power Source, destroying it. Acquired Sub. Machine Gun. Acquired 12 matter. Lgt. Ion Engine destroyed. Sub. Machine Gun destroyed. Slammed into YL-JM0(R). Map ----- +----------------------------------------------------+ | ???????????????## #?????????# ##?????????? | | ???????????????# ##?????????# ##?????????? | | ???????????????# ####??????????# #?????????? | | ???????????????## ##?????????????## ##?????????? | | ????????????????## "#?????????????# #?????????? | | ?????????????????# ######??####??# #?????????? | | ?????????????????# #### ##?## ##?##?????#" | | ?????????????????#" ### ## #####?# | | ???????????????###" %%& ### "& #? | | ???????????????# " & #?# #??# | | ???????????????##" ; ### " #### | | ????????????????#" ; " # | | ????????????????# ## ###### | | ????????????????# ### #?###?### ## | | ????????????????# ; ### ### ##??# | | ????????????????# ## #### | | ????????????????# !! ## ## " | | ????????????????#" &&& ## # """ | | ????????????????##" &%! ;#;; % #"# ##""## | | ?????????????????## "& ; ###"#" ## ####"" | | ??????????????????## # ; "#######?#####"# | | ???????????????????###### ""#????## ##"##"# | | ??????????????????????## "## ####"##"#""# | | ??????????????????????# #" ";;;# #""""#"# | | ??????????????????????# #; ;;;#""# #"""""###"" | | ??????????????????????# R@ # ######""""####""" | | ??????????????????????## ####??##""#"????##" | | ???????????????????????########?????#####??????## | | ????????????????????????????????????????????????# | | ????????????????????????????????????????????????# | | ????????????????????????????????????????????????## | | ?????????????????????????????????????????????????# | | ??????????????????????????????????????????????#### | | ??????????????????????????????????????????????# | | ??????????????????????????????????????????????## | | ??????????????????????????????????????????????## | | ??????????????????????????????????????????????# | | ??????????????????????????????????????????????# | | ??????????????????????????????????????????????# | | ??????????????????????????????????????????????#### | | ?????????????????????????????????????????????####? | | ??????????????????########????????????######## ## | | ??????????????????# # # ###???????#### """ | | ???????????######?## ######### ^ | | ???????????# #### ## ## [ | | ???????????# % #%# # ] "## | | ??????????## % # """["## | | ?????????## % ### ### # ######## | | ?????????# % #### ## ##?####^ ##??????# | | ?????????# #???## #????# ^#???????? | +----------------------------------------------------+ Best States ------------- Heat Dissipation 25 Energy Generation 15 Energy Capacity 250 Matter Stores 300 Matter Capacity 300 Sight Range 16 Terrain Scan Density 10 Armor Coverage 800 Evasion (%) 55 Item Schematics ----------------- None Robot Schematics ------------------ None Fabricated ------------ Nothing Repaired ---------- Nothing Alien Tech Used ----------------- None Achievements -------------- None Challenges ------------ None Game ------ Seed ConceptGrapheneReplica Manual? 0 Play Time 00:19:43 Cumulative 18.5 hours Start 2025.05.12 @ 22:11:59 End 2025.05.12 @ 22:28:38 Sessions 1 Manual Loads 0 Difficulty Rogue Special Mode None Game No. 19 Rogue 19 Adventurer 0 Explorer 0 Win Type - Total 0 Types 0/0/0/0/0/0/0/0/0/0 Lore% 25 Gallery% 16 Achievement% 17 Wizard Run 0 Options --------- Layout 1 ASCII 0 Keyboard 0 Movement Mouse Keybinds 1 Fullscreen 1 Font 24/Smallcaps Map View 50x35 Zoom Use 0% Tactical HUD 0 Map Filters NONE Filters NONE Steam 1 RUN: 8fc07dd0-415a-423f-8a1e-b4088a528fad